{"text_format":"1","workbook":"xlsx","n_sheets":6,"sheets":["Gesamtliste","Sammlung1","Sammlung2","Sammlung3","Sammlung4","Sammlung5"],"not_rendered":{"charts":0,"images":0,"macros":1,"external_links":0,"defined_names":1,"comments":0,"pivot_tables":0},"unopened":[],"bounds":{"document_bytes":16777216,"sheet_cells":100000,"rows_first":2000,"rows_last":500,"rows_between":2000,"halvings":0,"cell_chars":16384,"cell_head_chars":4096},"cells_cut":0,"cells_raw":0,"read":"whole","date_system":"1900"}

{"sheet":"Gesamtliste","index":0,"n_rows":51,"n_cols":6,"rows_kept":51,"cut":false,"hidden":false,"merged":[]}
[null,"Link","Name","Info","Sammlung","POS"]
["Diese",{"$f":"IF($C2=\"\",\"\",HYPERLINK(\"#Sammlung\"&E2&\"!C\"&F2+1,C2))","v":"Artikel 1"},"Artikel 1","neu",1,1]
["Spalte",{"$f":"IF($C3=\"\",\"\",HYPERLINK(\"#Sammlung\"&E3&\"!B\"&F3+1,C3))","v":"Artikel 2"},"Artikel 2","altneu",1,{"$f":"IF(C3=\"\",\"\",F2+1)","v":2}]
["soll","Artikel 3","Artikel 3","alt",1,{"$f":"IF(C4=\"\",\"\",F3+1)","v":3}]
["nicht","Artikel 4","Artikel 4","alt",1,4]
["gelöscht","Artikel 5","Artikel 5","neu",1,5]
["werden","Artikel 6","Artikel 6","neu",1,6]
[null,"Artikel 7","Artikel 7","alt",1,7]
[null,"Artikel 8","Artikel 8","neu",1,8]
[null,"Artikel 9","Artikel 9","neu",1,9]
[null,"Artikel 10","Artikel 10","neu",1,10]
[null,{"$f":"IF($C12=\"\",\"\",HYPERLINK(\"#Sammlung\"&E12&\"!C\"&F12+1,C12))","v":"Artikel 1"},"Artikel 1","neu",2,1]
[null,{"$f":"IF($C13=\"\",\"\",HYPERLINK(\"#Sammlung\"&E13&\"!B\"&F13+1,C13))","v":"Artikel 2"},"Artikel 2","altneu",2,{"$f":"IF(C13=\"\",\"\",F12+1)","v":2}]
[null,"Artikel 3","Artikel 3","alt",2,{"$f":"IF(C14=\"\",\"\",F13+1)","v":3}]
[null,"Artikel 4","Artikel 4","alt",2,4]
[null,"Artikel 5","Artikel 5","neu",2,5]
[null,"Artikel 6","Artikel 6","neu",2,6]
[null,"Artikel 7","Artikel 7","alt",2,7]
[null,"Artikel 8","Artikel 8","neu",2,8]
[null,"Artikel 9","Artikel 9","neu",2,9]
[null,"Artikel 10","Artikel 10","neu",2,10]
[null,{"$f":"IF($C22=\"\",\"\",HYPERLINK(\"#Sammlung\"&E22&\"!C\"&F22+1,C22))","v":"Artikel 1"},"Artikel 1","neu",4,1]
[null,{"$f":"IF($C23=\"\",\"\",HYPERLINK(\"#Sammlung\"&E23&\"!B\"&F23+1,C23))","v":"Artikel 2"},"Artikel 2","altneu",4,{"$f":"IF(C23=\"\",\"\",F22+1)","v":2}]
[null,"Artikel 3","Artikel 3","alt",4,{"$f":"IF(C24=\"\",\"\",F23+1)","v":3}]
[null,"Artikel 4","Artikel 4","alt",4,4]
[null,"Artikel 5","Artikel 5","neu",4,5]
[null,"Artikel 6","Artikel 6","neu",4,6]
[null,"Artikel 7","Artikel 7","alt",4,7]
[null,"Artikel 8","Artikel 8","neu",4,8]
[null,"Artikel 9","Artikel 9","neu",4,9]
[null,"Artikel 10","Artikel 10","neu",4,10]
[null,{"$f":"IF($C32=\"\",\"\",HYPERLINK(\"#Sammlung\"&E32&\"!C\"&F32+1,C32))","v":"Artikel 1"},"Artikel 1","neu",3,1]
[null,{"$f":"IF($C33=\"\",\"\",HYPERLINK(\"#Sammlung\"&E33&\"!B\"&F33+1,C33))","v":"Artikel 2"},"Artikel 2","altneu",3,{"$f":"IF(C33=\"\",\"\",F32+1)","v":2}]
[null,"Artikel 3","Artikel 3","alt",3,{"$f":"IF(C34=\"\",\"\",F33+1)","v":3}]
[null,"Artikel 4","Artikel 4","alt",3,4]
[null,"Artikel 5","Artikel 5","neu",3,5]
[null,"Artikel 6","Artikel 6","neu",3,6]
[null,"Artikel 7","Artikel 7","alt",3,7]
[null,"Artikel 8","Artikel 8","neu",3,8]
[null,"Artikel 9","Artikel 9","neu",3,9]
[null,"Artikel 10","Artikel 10","neu",3,10]
[null,{"$f":"IF($C42=\"\",\"\",HYPERLINK(\"#Sammlung\"&E42&\"!C\"&F42+1,C42))","v":"Artikel 1"},"Artikel 1","neu",5,1]
[null,{"$f":"IF($C43=\"\",\"\",HYPERLINK(\"#Sammlung\"&E43&\"!B\"&F43+1,C43))","v":"Artikel 2"},"Artikel 2","altneu",5,{"$f":"IF(C43=\"\",\"\",F42+1)","v":2}]
[null,"Artikel 3","Artikel 3","alt",5,{"$f":"IF(C44=\"\",\"\",F43+1)","v":3}]
[null,"Artikel 4","Artikel 4","alt",5,4]
[null,"Artikel 5","Artikel 5","neu",5,5]
[null,"Artikel 6","Artikel 6","neu",5,6]
[null,"Artikel 7","Artikel 7","alt",5,7]
[null,"Artikel 8","Artikel 8","neu",5,8]
[null,"Artikel 9","Artikel 9","neu",5,9]
[null,"Artikel 10","Artikel 10","neu",5,10]

{"sheet":"Sammlung1","index":1,"n_rows":64,"n_cols":6,"rows_kept":64,"cut":false,"hidden":false,"merged":[]}
[null,null,"Artikel","Info","Sammlung","Pos"]
[null,{"$f":"IF($C2=\"\",\"\",HYPERLINK(\"#Sammlung\"&E2&\"!C\"&F2+1,C2))","v":"Artikel 1"},"Artikel 1","neu",1,1]
[null,{"$f":"IF($C3=\"\",\"\",HYPERLINK(\"#Sammlung\"&E3&\"!B\"&F3+1,C3))","v":"Artikel 2"},"Artikel 2","altneu",1,{"$f":"IF(C3=\"\",\"\",F2+1)","v":2}]
[null,"Artikel 3","Artikel 3","alt",1,{"$f":"IF(C4=\"\",\"\",F3+1)","v":3}]
[null,"Artikel 4","Artikel 4","alt",1,4]
[null,"Artikel 5","Artikel 5","neu",1,5]
[null,"Artikel 6","Artikel 6","neu",1,6]
[null,"Artikel 7","Artikel 7","alt",1,7]
[null,"Artikel 8","Artikel 8","neu",1,8]
[null,"Artikel 9","Artikel 9","neu",1,9]
[null,"Artikel 10","Artikel 10","neu",1,10]
[null,"",null,null,null,""]
[null,"",null,null,null,""]
[null,"",null,null,null,""]
[null,"",null,null,null,""]
[null,"",null,null,null,""]
[null,"",null,null,null,""]
[null,"",null,null,null,""]
[null,"",null,null,null,""]
[null,"",null,null,null,""]
[null,"",null,null,null,""]
[null,"",null,null,null,""]
[null,"",null,null,null,""]
[null,"",null,null,null,""]
[null,"",null,null,null,""]
[null,"",null,null,null,""]
[null,"",null,null,null,""]
[null,"",null,null,null,""]
[null,null,null,null,null,""]
[null,null,null,null,null,""]
[null,null,null,null,null,""]
[null,null,null,null,null,""]
[null,null,null,null,null,""]
[null,null,null,null,null,""]
[null,null,null,null,null,""]
[null,null,null,null,null,{"$f":"IF(H36=\"\",\"\",F35+1)","v":""}]
[null,null,null,null,null,""]
[null,null,null,null,null,""]
[null,null,null,null,null,""]
[null,null,null,null,null,""]
[null,null,null,null,null,""]
[null,null,null,null,null,""]
[null,null,null,null,null,""]
[null,null,null,null,null,""]
[null,null,null,null,null,""]
[null,null,null,null,null,""]
[null,null,null,null,null,""]
[null,null,null,null,null,""]
[null,null,null,null,null,""]
[null,null,null,null,null,""]
[null,null,null,null,null,""]
[null,null,null,null,null,""]
[null,null,null,null,null,""]
[null,null,null,null,null,""]
[null,null,null,null,null,""]
[null,null,null,null,null,""]
[null,null,null,null,null,""]
[null,null,null,null,null,""]
[null,null,null,null,null,""]
[null,null,null,null,null,""]
[null,null,null,null,null,""]
[null,null,null,null,null,""]
[null,null,null,null,null,""]
[null,null,null,null,null,""]

{"sheet":"Sammlung2","index":2,"n_rows":29,"n_cols":6,"rows_kept":29,"cut":false,"hidden":false,"merged":[]}
[null,null,"Artikel","Info","Sammlung"]
[null,{"$f":"IF($C2=\"\",\"\",HYPERLINK(\"#Sammlung\"&E2&\"!C\"&F2+1,C2))","v":"Artikel 1"},"Artikel 1","neu",2,1]
[null,{"$f":"IF($C3=\"\",\"\",HYPERLINK(\"#Sammlung\"&E3&\"!B\"&F3+1,C3))","v":"Artikel 2"},"Artikel 2","altneu",2,{"$f":"IF(C3=\"\",\"\",F2+1)","v":2}]
[null,"Artikel 3","Artikel 3","alt",2,{"$f":"IF(C4=\"\",\"\",F3+1)","v":3}]
[null,"Artikel 4","Artikel 4","alt",2,4]
[null,"Artikel 5","Artikel 5","neu",2,5]
[null,"Artikel 6","Artikel 6","neu",2,6]
[null,"Artikel 7","Artikel 7","alt",2,7]
[null,"Artikel 8","Artikel 8","neu",2,8]
[null,"Artikel 9","Artikel 9","neu",2,9]
[null,"Artikel 10","Artikel 10","neu",2,10]
[null,{"$f":"IF($C12=\"\",\"\",HYPERLINK(\"#Sammlung\"&E12&\"!B\"&F12+1,C12))","v":""},null,null,null,{"$f":"IF(C12=\"\",\"\",F11+1)","v":""}]
[null,"",null,null,null,""]
[null,"",null,null,null,""]
[null,"",null,null,null,""]
[null,"",null,null,null,""]
[null,"",null,null,null,""]
[null,"",null,null,null,""]
[null,"",null,null,null,""]
[null,"",null,null,null,""]
[null,"",null,null,null,""]
[null,"",null,null,null,""]
[null,"",null,null,null,""]
[null,"",null,null,null,""]
[null,"",null,null,null,""]
[null,"",null,null,null,""]
[null,"",null,null,null,""]
[null,"",null,null,null,""]
[null,null,null,null,null,""]

{"sheet":"Sammlung3","index":3,"n_rows":11,"n_cols":6,"rows_kept":11,"cut":false,"hidden":false,"merged":[]}
[null,null,"Artikel","Info","Sammlung"]
[null,{"$f":"IF($C2=\"\",\"\",HYPERLINK(\"#Sammlung\"&E2&\"!C\"&F2+1,C2))","v":"Artikel 1"},"Artikel 1","neu",3,1]
[null,{"$f":"IF($C3=\"\",\"\",HYPERLINK(\"#Sammlung\"&E3&\"!B\"&F3+1,C3))","v":"Artikel 2"},"Artikel 2","altneu",3,{"$f":"IF(C3=\"\",\"\",F2+1)","v":2}]
[null,"Artikel 3","Artikel 3","alt",3,{"$f":"IF(C4=\"\",\"\",F3+1)","v":3}]
[null,"Artikel 4","Artikel 4","alt",3,4]
[null,"Artikel 5","Artikel 5","neu",3,5]
[null,"Artikel 6","Artikel 6","neu",3,6]
[null,"Artikel 7","Artikel 7","alt",3,7]
[null,"Artikel 8","Artikel 8","neu",3,8]
[null,"Artikel 9","Artikel 9","neu",3,9]
[null,"Artikel 10","Artikel 10","neu",3,10]

{"sheet":"Sammlung4","index":4,"n_rows":11,"n_cols":6,"rows_kept":11,"cut":false,"hidden":false,"merged":[]}
[null,null,"Artikel","Info","Sammlung"]
[null,{"$f":"IF($C2=\"\",\"\",HYPERLINK(\"#Sammlung\"&E2&\"!C\"&F2+1,C2))","v":"Artikel 1"},"Artikel 1","neu",4,1]
[null,{"$f":"IF($C3=\"\",\"\",HYPERLINK(\"#Sammlung\"&E3&\"!B\"&F3+1,C3))","v":"Artikel 2"},"Artikel 2","altneu",4,{"$f":"IF(C3=\"\",\"\",F2+1)","v":2}]
[null,"Artikel 3","Artikel 3","alt",4,{"$f":"IF(C4=\"\",\"\",F3+1)","v":3}]
[null,"Artikel 4","Artikel 4","alt",4,4]
[null,"Artikel 5","Artikel 5","neu",4,5]
[null,"Artikel 6","Artikel 6","neu",4,6]
[null,"Artikel 7","Artikel 7","alt",4,7]
[null,"Artikel 8","Artikel 8","neu",4,8]
[null,"Artikel 9","Artikel 9","neu",4,9]
[null,"Artikel 10","Artikel 10","neu",4,10]

{"sheet":"Sammlung5","index":5,"n_rows":11,"n_cols":6,"rows_kept":11,"cut":false,"hidden":false,"merged":[]}
[null,null,"Artikel","Info","Sammlung"]
[null,{"$f":"IF($C2=\"\",\"\",HYPERLINK(\"#Sammlung\"&E2&\"!C\"&F2+1,C2))","v":"Artikel 1"},"Artikel 1","neu",5,1]
[null,{"$f":"IF($C3=\"\",\"\",HYPERLINK(\"#Sammlung\"&E3&\"!B\"&F3+1,C3))","v":"Artikel 2"},"Artikel 2","altneu",5,{"$f":"IF(C3=\"\",\"\",F2+1)","v":2}]
[null,"Artikel 3","Artikel 3","alt",5,{"$f":"IF(C4=\"\",\"\",F3+1)","v":3}]
[null,"Artikel 4","Artikel 4","alt",5,4]
[null,"Artikel 5","Artikel 5","neu",5,5]
[null,"Artikel 6","Artikel 6","neu",5,6]
[null,"Artikel 7","Artikel 7","alt",5,7]
[null,"Artikel 8","Artikel 8","neu",5,8]
[null,"Artikel 9","Artikel 9","neu",5,9]
[null,"Artikel 10","Artikel 10","neu",5,10]